{"text_format":"1","workbook":"xlsx","n_sheets":7,"sheets":["Main","مفردات موظف","المرتبات","Data","البيانات","بيان الشهر","حضور غياب"],"not_rendered":{"charts":0,"images":10,"macros":1,"external_links":0,"defined_names":4,"comments":0,"pivot_tables":0},"unopened":[],"bounds":{"document_bytes":16777216,"sheet_cells":100000,"rows_first":2000,"rows_last":500,"rows_between":2000,"halvings":0,"cell_chars":16384,"cell_head_chars":4096},"cells_cut":0,"cells_raw":0,"read":"whole","date_system":"1900"}

{"sheet":"Main","index":0,"n_rows":0,"n_cols":0,"rows_kept":0,"cut":false,"hidden":false,"merged":[[2,5,2,9]]}

{"sheet":"مفردات موظف","index":1,"n_rows":24,"n_cols":8,"rows_kept":24,"cut":false,"hidden":false,"merged":[[5,4,5,6],[7,6,10,7]]}
[]
[]
[null,null,null,null,null,"الشهر"]
[null,"كود",3,null,null,{"$f":"VLOOKUP(H4,Data!G1:H13,2,0)","v":"فبراير "},null,2]
[]
[null,"الاسم",{"$f":"IFERROR(VLOOKUP(C4,البيانات!B8:D29,2,0),\"\")","v":"احمد صخر "},null,{"$f":"C6","v":"احمد صخر "}]
[]
[null,"الوظيفة",{"$f":"IFERROR(VLOOKUP(C4,البيانات!B8:D29,3,0),\"\")","v":"مهندس"}]
[{"$f":"INDEX(البيانات!$B$36:$E$112,MATCH($C$4,البيانات!$B$36:$B$112,0),4)","v":0}]
[null,"الراتب",{"$f":"IFERROR(VLOOKUP(C4,البيانات!B8:E35,4,0),\"\")","v":5000}]
[]
[null,"أيام الحضور",{"$f":"VLOOKUP(H4,#REF!,4,VLOOKUP(C4,#REF!,4,0))","v":{"$error":"#REF!"}}]
[]
[null,"اجمالى الاضافى",{"$f":"F14*F15","v":{"$error":"#REF!"}},null,"عدد الساعات",0]
[null,null,null,null,null,{"$f":"C10/C12/8","v":{"$error":"#REF!"}}]
[null,"اجمالى  الغياب",{"$f":"F16*F18","v":0},null,"عدد الأيام ",0]
[]
[null,"السلف",0,null,null,{"$f":"C10/30","v":166.66666666666666}]
[]
[null,"خصومات ",0]
[]
[null," اجمالى تاخيرات ",{"$f":"F22*F23","v":{"$error":"#REF!"}},null,"عدد ساعات التاخير",0]
[null,null,null,null,null,{"$f":"C10/C12/8","v":{"$error":"#REF!"}}]
[null,"صافى المرتب ",{"$f":"C10-C16-C20-C18-C22+C14","v":{"$error":"#REF!"}}]

{"sheet":"المرتبات","index":2,"n_rows":2,"n_cols":23,"rows_kept":2,"cut":false,"hidden":false,"merged":[]}
[]
[null,"الاسم","المسمى الوظيفى","المرتب الاساسى","عدد ايام الشهر","عدد الساعات الفعلية","الاجر اليومى للموظف","معدل اجر الساعة","الاضافى بالساعة مدين (له)","الاضافي بالساعة دائن (عليه)","مكافأة","قيمة الاضافى","إجمالى المستحق","سلف","ايام الغياب","قيمة الغياب","الخصم","قيمة الخصم","عهدة","إجمالى المستقطع","صافى المستحق للموظف","التوقيع","الاضافي باليوم دائن (عليه)"]

{"sheet":"Data","index":3,"n_rows":23,"n_cols":18,"rows_kept":23,"cut":false,"hidden":false,"merged":[]}
["م","الاسم","الوظيفه","المرتب ",null,"الأيام ","رقم الشهر ","الشهر",null,"السنة "]
[1,"محمد الديب ","محاسب",4250,null,"السبت ",1,"يناير",null,2019,null,"محمد الديب ","محاسب",4250,null,"محمد الديب ","محاسب",4250]
[2,"هشام محمد فتح الله ","محاسب",3500,null,"الاحد",2,"فبراير ",null,2020,null,"هشام محمد فتح الله ","محاسب",3500,null,"هشام محمد فتح الله ","محاسب",3500]
[3,"احمد صخر ","مهندس",5000,null,"الإثنين",3,"مارس",null,2021,null,"كريم عبدالحكيم البدوى","مهندس",5500,null,"صابر السيد الدسوقى","مدير",6000]
[4,"صابر السيد الدسوقى","فنى تكييف",6000,null,"الثلاثاء",4,"أبريل",null,2022,null,"صابر السيد الدسوقى","فنى تكييف",6000,null,"ياسر محمد محمود","امين مخزن",4000]
[5,"ياسر محمد محمود","امين مخزن",4000,null,"الأربعاء",5,"مايو",null,2023,null,"ياسر محمد محمود","امين مخزن",4000,null,"وليد محمدمحمد صالح","كهربائى",4500]
[6,"وليد محمدمحمد صالح","كهربائى",4500,null,"الخميس",6,"يونيو",null,2024,null,"وليد محمدمحمد صالح","كهربائى",4500,null,"محمد سامى ","فنى تكييف",4000]
[7,"محمد سامى ","فنى تكييف",4000,null,"الجمعة",7,"يوليو",null,2025,null,"عمرو عادل ","كهربائى",4000,null,"محمد عادل","مساعد فنى",3000]
[8,"محمد عادل","سائق",3000,null,null,8,"أغسطس",null,2026,null,"محمد سامى ","فنى تكييف",4000,null,"محمد صبرى","مساعد فنى",3000]
[9,"محمد صبرى","مساعد فنى",3000,null,null,9,"سبتمبر",null,2027,null,"محمد عادل","مساعد فنى",3000,null,"محمد رأفت","عامل",2500]
[10,"محمد رأفت","عامل",2500,null,null,10,"أكتوبر",null,2028,null,"محمد صبرى","مساعد فنى",3000,null,"أحمد عبداللطيف","عامل",2200]
[11,"أحمد عبداللطيف","عامل",2200,null,null,11,"نوفمبر",null,2029,null,"محمد رأفت","عامل",2500,null,"احمد عبدالفتاح ","فنى تكييف",4200]
[12,"احمد عبدالفتاح ","فنى تكييف",4200,null,null,12,"ديسمبر",null,2030,null,"أحمد عبداللطيف","عامل",2200,null,"عبد الرحمن محمد رمضان","مساعد فنى",2250]
[13,"احمد محمد حسين","فنى تكييف",0,null,null,null,null,null,null,null,"خالد مجدى محمد","فنى تكييف",3500,null,"عبد الحليم محمد","فني",4000]
[14,"اسماعيل عمران اسماعيل","فنى تكييف",0,null,null,null,null,null,null,null,"عبدالحميد محمد خلف الله","مساعد فنى",2750,null,"م. أحمد صخر","مهندس",5000]
[15,"عبد الرحمن محمد رمضان","مساعد فنى",2250,null,null,null,null,null,null,null,"احمد عبدالفتاح ","فنى تكييف",4200,null,"عمار ياسر حسن","مساعد فنى",2500]
[16,"عبد الحليم محمد ابو السعود","كهربائى",4000,null,null,null,null,null,null,null,"هانى شاكر احمد ","عامل بوفيه",2300,null,"احمد سيد","عامل بوفيه",2000]
[17,"احمد فتحى","سائق",3000,null,null,null,null,null,null,null,"حسن علي حسن","فني",3000,null,"احمد فتحي","سائق",3000]
[18,"احمد سيد","عامل بوفيه",2000,null,null,null,null,null,null,null,"محمد مجدي","فني",3750,null,"إسماعيل عمران","فني تكييف \"صيانة\"",0]
[19,"محمود قاسم","محاسب",0,null,null,null,null,null,null,null,"أحمد رضــا","فني",4500]
[20,"عمرو محمود عمر","مساعد فنى",0,null,null,null,null,null,null,null,"سمير محمد العربي","سائق",3000]
[21,null,null,null,null,null,null,null,null,null,null,"عبد الرحمن محمد رمضان","مساعد فنى",2250]
[null,null,null,null,null,null,null,null,null,null,null,"احمد سلامة","مساعد فنى",3000]

{"sheet":"البيانات","index":4,"n_rows":61,"n_cols":104,"rows_kept":61,"cut":false,"hidden":false,"merged":[[4,20,4,22],[5,17,5,19],[5,20,5,22],[4,11,4,13],[5,11,5,13],[4,14,4,16],[5,14,5,16],[4,17,4,19],[4,56,4,58],[4,23,4,25],[4,26,4,28],[4,29,4,31],[4,32,4,34],[4,35,4,37],[4,38,4,40],[4,41,4,43],[4,44,4,46],[4,47,4,49],[4,50,4,52],[4,53,4,55],[5,56,5,58],[5,23,5,25],[5,26,5,28],[5,29,5,31],[5,32,5,34],[5,35,5,37],[5,38,5,40],[5,41,5,43],[5,44,5,46],[5,47,5,49],[5,50,5,52],[5,53,5,55],[4,62,4,64],[4,65,4,67],[4,68,4,70],[4,71,4,73],[4,74,4,76],[4,95,4,97],[4,98,4,100],[4,101,4,103],[5,59,5,61],[5,62,5,64],[5,65,5,67],[5,68,5,70],[5,71,5,73],[5,74,5,76],[4,77,4,79],[4,80,4,82],[4,83,4,85],[4,86,4,88],[4,89,4,91],[4,92,4,94],[4,59,4,61],[5,95,5,97],[5,98,5,100],[5,101,5,103],[5,77,5,79],[5,80,5,82],[5,83,5,85],[5,86,5,88],[5,89,5,91],[5,92,5,94]]}
[null,null,null,"الحضور ","الانصراف "]
[null,null,null,"08:00:00","17:00:00",null,"إجازة","مامورية","استذان","غياب"]
[null,null,null,"09:00:00","16:00:00"]
[]
[null,null,null,null,null,null,null,null,null,null,null,1,null,null,2,null,null,3,null,null,4,null,null,5,null,null,6,null,null,7,null,null,8,null,null,9,null,null,10,null,null,11,null,null,12,null,null,13,null,null,14,null,null,15,null,null,16,null,null,17,null,null,18,null,null,19,null,null,20,null,null,21,null,null,22,null,null,23,null,null,24,null,null,25,null,null,26,null,null,27,null,null,28,null,null,29,null,null,30,null,null,31]
[null,"م","الاسم","الوظيفه","المرتب ",null,"اليوم","حضور ","انصراف","الشهر","الاضافى","الخميس",null,null,"الجمعة",null,null,"السبت",null,null,"الأحد",null,null,"الإثنين",null,null,"الثلاثاء",null,null,"الأربعاء",null,null,"الخميس",null,null,"الجمعة",null,null,"السبت",null,null,"الأحد",null,null,"الإثنين",null,null,"الثلاثاء",null,null,"الأربعاء",null,null,"الخميس",null,null,"الجمعة",null,null,"السبت",null,null,"الأحد",null,null,"الإثنين",null,null,"الثلاثاء",null,null,"الأربعاء",null,null,"الخميس",null,null,"الجمعة",null,null,"السبت",null,null,"الأحد",null,null,"الإثنين",null,null,"الثلاثاء",null,null,"الأربعاء",null,null,"الخميس",null,null,"الجمعة",null,null,"السبت"]
[]
[null,"م","الاسم","الوظيفه","المرتب ",null,"اليوم","حضور ","انصراف","الشهر","الاضافى","ح","ن","ض","ح","ن","ض","ح","ن","ض","ح","ن","ض","ح","ن","ض","ح","ن","ض","ح","ن","ض","ح","ن","ض","ح","ن","ض","ح","ن","ض","ح","ن","ض","ح","ن","ض","ح","ن","ض","ح","ن","ض","ح","ن","ض","ح","ن","ض","ح","ن","ض","ح","ن","ض","ح","ن","ض","ح","ن","ض","ح","ن","ض","ح","ن","ض","ح","ن","ض","ح","ن","ض","ح","ن","ض","ح","ن","ض","ح","ن","ض","ح","ن","ض","ح","ن","ض","ح","ن","ض","ح","ن","ض"]
[null,1,"محمد الديب ","محاسب",4250]
[null,2,"هشام محمد فتح الله ","محاسب",3500]
[null,3,"احمد صخر ","مهندس",5000]
[null,4,"صابر السيد الدسوقى","فنى تكييف",6000]
[null,5,"ياسر محمد محمود","امين مخزن",4000]
[null,6,"وليد محمدمحمد صالح","كهربائى",4500]
[null,7,"محمد سامى ","فنى تكييف",4000]
[null,8,"محمد عادل","سائق",3000]
[null,9,"محمد صبرى","مساعد فنى",3000]
[null,10,"محمد رأفت","عامل",2500]
[null,11,"أحمد عبداللطيف","عامل",2200]
[null,12,"احمد عبدالفتاح ","فنى تكييف",4200]
[null,13,"احمد محمد حسين","فنى تكييف",0]
[null,14,"اسماعيل عمران اسماعيل","فنى تكييف",0]
[null,15,"عبد الرحمن محمد رمضان","مساعد فنى",2250]
[null,16,"عبد الحليم محمد ابو السعود","كهربائى",4000]
[null,17,"احمد فتحى","سائق",3000]
[null,18,"احمد سيد","عامل بوفيه",2000]
[null,19,"محمود قاسم","محاسب",0]
[null,20,"عمرو محمود عمر","مساعد فنى",0]
[null,21,"محمد يوسف ","مدير مالى ",0]
[null,22,"B",0,0]
[null,23,"C",0,0]
[null,24,"D",0,0]
[null,25,"F",0,0]
[]
[]
[null,"م","الاسم","الوظيفه","صورة"]
[null,1,"محمد الديب ","محاسب"]
[null,2,"هشام محمد فتح الله ","محاسب"]
[null,3,"احمد صخر ","مهندس"]
[null,4,"صابر السيد الدسوقى","فنى تكييف"]
[null,5,"ياسر محمد محمود","امين مخزن"]
[null,6,"وليد محمدمحمد صالح","كهربائى"]
[null,7,"محمد سامى ","فنى تكييف"]
[null,8,"محمد عادل","سائق"]
[null,9,"محمد صبرى","مساعد فنى"]
[null,10,"محمد رأفت","عامل"]
[null,11,"أحمد عبداللطيف","عامل"]
[null,12,"احمد عبدالفتاح ","فنى تكييف"]
[null,13,"احمد محمد حسين","فنى تكييف"]
[null,14,"اسماعيل عمران اسماعيل","فنى تكييف"]
[null,15,"عبد الرحمن محمد رمضان","مساعد فنى"]
[null,16,"عبد الحليم محمد ابو السعود","كهربائى"]
[null,17,"احمد فتحى","سائق"]
[null,18,"احمد سيد","عامل بوفيه"]
[null,19,"محمود قاسم","محاسب"]
[null,20,"عمرو محمود عمر","مساعد فنى"]
[null,21,"محمد يوسف ","مدير مالى "]
[null,22,"B",0]
[null,23,"C",0]
[null,24,"D",0]
[null,25,"F",0]

{"sheet":"بيان الشهر","index":5,"n_rows":32,"n_cols":53,"rows_kept":32,"cut":false,"hidden":false,"merged":[[0,12,0,19],[1,11,3,19],[5,0,6,0],[5,1,6,1],[5,2,6,2],[5,3,6,3],[5,4,6,4],[5,5,6,5],[5,6,6,6],[5,7,6,7],[5,43,6,43],[5,10,6,10],[5,42,6,42],[5,9,6,9],[5,8,6,8]]}
[null,null,null,null,null,null,null,null,null,null,null,null,"حضور وغياب موظفين",null,null,null,null,null,null,null,null,null,null,null,null,null,null,null,null,null,null,null,null,null,null,null,null,null,null,null,null,null,null,null,null,null,null,"الحضور ","الانصراف "]
[null,null,null,null,null,null,null,null,null,null,null,{"$f":"DATE($C$4,$B$4,COLUMN(A:A))","v":"2021-01-01"},null,null,null,null,null,null,null,null,null,null,null,null,null,null,null,null,null,null,null,null,null,null,null,null,null,null,null,null,null,null,null,null,null,"ح",null,"08:00:00","17:00:00","إجازة","مامورية","استذان","غياب"]
[null,"الشهـــر","السنة",null,null,null,null,null,null,null,null,null,null,null,null,null,null,null,null,null,null,null,null,null,null,null,null,null,null,null,null,null,null,null,null,null,null,null,null,null,null,null,null,null,null,"غ",null,"09:00:00","16:00:00"]
[null,1,2021,null,null,null,null,null,null,null,null,null,null,null,null,null,null,null,null,null,null,null,null,null,null,null,null,null,null,null,null,null,null,null,null,null,null,null,null,null,null,null,null,null,null,"A"]
[]
["م","الاسم","الوظيفه","المرتب ","الشهر","أيام \nالحضور","أيام \nالغياب","الاضافى","السلف","التاخير","الخصومات ",{"$f":"TEXT(L7,\"DDD\")","v":"الجمعة"},{"$f":"TEXT(M7,\"DDD\")","v":"السبت"},{"$f":"TEXT(N7,\"DDD\")","v":"الأحد"},"الاثنين","الثلاثاء","الأربعاء","الخميس","الجمعة","الاثنين","الثلاثاء","الأربعاء","الخميس","الجمعة","السبت","الأحد","الاثنين","الثلاثاء","الأربعاء","الخميس","الجمعة","السبت","الأحد","الاثنين","الثلاثاء","الأربعاء","الخميس","الجمعة","السبت","الأحد","الاثنين","الثلاثاء","عدد أيام الحضور","عدد ايم الغياب"]
[null,null,null,null,null,null,null,null,null,null,null,{"$f":"DATE($C$4,$B$4,COLUMN(A:A))","v":"2021-01-01"},"2021-01-02","2021-01-03","2021-01-04","2021-01-05","2021-01-06","2021-01-07","2021-01-08",{"$f":"DATE($C$4,$B$4,COLUMN(K:K))","v":"2021-01-11"},"2021-01-12","2021-01-13","2021-01-14","2021-01-15","2021-01-16","2021-01-17","2021-01-18","2021-01-19","2021-01-20","2021-01-21","2021-01-22","2021-01-23","2021-01-24","2021-01-25","2021-01-26","2021-01-27","2021-01-28","2021-01-29","2021-01-30","2021-01-31","2021-02-01","2021-02-02"]
[null,null,null,null,null,null,null,null,null,null,null,null,null,null,null,null,null,null,null,null,null,null,null,null,null,null,null,null,null,null,null,null,null,null,null,null,null,null,null,null,null,null,{"$f":"COUNTIF(L8:AP8,\"<>غ\")","v":31},{"$f":"COUNTIF(L8:AP8,\"غ\")","v":0}]
[null,null,null,null,null,null,null,null,null,null,null,null,null,null,null,null,null,null,null,null,null,null,null,null,null,null,null,null,null,null,null,null,null,null,null,null,null,null,null,null,null,null,{"$f":"COUNTIF(L9:AP9,\"<>غ\")","v":31},{"$f":"COUNTIF(L9:AP9,\"غ\")","v":0}]
[3,"احمد صخر ","مهندس",5000,1,{"$f":"COUNTIF(L10:AP10,\"<>غ\")","v":31},{"$f":"COUNTIF(L10:AP10,\"غ\")","v":0},null,null,null,null,null,null,null,null,null,null,null,null,null,null,null,null,null,null,null,null,null,null,null,null,null,null,null,null,null,null,null,null,null,null,null,31,0]
[4,"صابر السيد الدسوقى","فنى تكييف",6000,1,31,0,null,null,null,null,null,null,null,null,null,null,null,null,null,null,null,null,null,null,null,null,null,null,null,null,null,null,null,null,null,null,null,null,null,null,null,31,0]
[5,"ياسر محمد محمود","امين مخزن",4000,1,31,0,null,null,null,null,null,null,null,null,null,null,null,null,null,null,null,null,null,null,null,null,null,null,null,null,null,null,null,null,null,null,null,null,null,null,null,31,0]
[6,"وليد محمدمحمد صالح","كهربائى",4500,1,31,0,null,null,null,null,null,null,null,null,null,null,null,null,null,null,null,null,null,null,null,null,null,null,null,null,null,null,null,null,null,null,null,null,null,null,null,31,0]
[7,"محمد سامى ","فنى تكييف",4000,1,31,0,null,null,null,null,null,null,null,null,null,null,null,null,null,null,null,null,null,null,null,null,null,null,null,null,null,null,null,null,null,null,null,null,null,null,null,31,0]
[8,"محمد عادل","سائق",3000,1,31,0,null,null,null,null,null,null,null,null,null,null,null,null,null,null,null,null,null,null,null,null,null,null,null,null,null,null,null,null,null,null,null,null,null,null,null,31,0]
[9,"محمد صبرى","مساعد فنى",3000,1,31,0,null,null,null,null,null,null,null,null,null,null,null,null,null,null,null,null,null,null,null,null,null,null,null,null,null,null,null,null,null,null,null,null,null,null,null,31,0]
[10,"محمد رأفت","عامل",2500,1,31,0,null,null,null,null,null,null,null,null,null,null,null,null,null,null,null,null,null,null,null,null,null,null,null,null,null,null,null,null,null,null,null,null,null,null,null,31,0]
[11,"أحمد عبداللطيف","عامل",2200,1,31,0,null,null,null,null,null,null,null,null,null,null,null,null,null,null,null,null,null,null,null,null,null,null,null,null,null,null,null,null,null,null,null,null,null,null,null,31,0]
[12,"احمد عبدالفتاح ","فنى تكييف",4200,1,31,0,null,null,null,null,null,null,null,null,null,null,null,null,null,null,null,null,null,null,null,null,null,null,null,null,null,null,null,null,null,null,null,null,null,null,null,31,0]
[13,"احمد محمد حسين","فنى تكييف",0,1,31,0,null,null,null,null,null,null,null,null,null,null,null,null,null,null,null,null,null,null,null,null,null,null,null,null,null,null,null,null,null,null,null,null,null,null,null,31,0]
[14,"اسماعيل عمران اسماعيل","فنى تكييف",0,1,31,0,null,null,null,null,null,null,null,null,null,null,null,null,null,null,null,null,null,null,null,null,null,null,null,null,null,null,null,null,null,null,null,null,null,null,null,31,0]
[15,"عبد الرحمن محمد رمضان","مساعد فنى",2250,1,31,0,null,null,null,null,null,null,null,null,null,null,null,null,null,null,null,null,null,null,null,null,null,null,null,null,null,null,null,null,null,null,null,null,null,null,null,31,0]
[16,"عبد الحليم محمد ابو السعود","كهربائى",4000,1,31,0,null,null,null,null,null,null,null,null,null,null,null,null,null,null,null,null,null,null,null,null,null,null,null,null,null,null,null,null,null,null,null,null,null,null,null,31,0]
[17,"احمد فتحى","سائق",3000,1,31,0,null,null,null,null,null,null,null,null,null,null,null,null,null,null,null,null,null,null,null,null,null,null,null,null,null,null,null,null,null,null,null,null,null,null,null,31,0]
[18,"احمد سيد","عامل بوفيه",2000,1,31,0,null,null,null,null,null,null,null,null,null,null,null,null,null,null,null,null,null,null,null,null,null,null,null,null,null,null,null,null,null,null,null,null,null,null,null,31,0]
[19,"محمود قاسم","محاسب",0,1,31,0,null,null,null,null,null,null,null,null,null,null,null,null,null,null,null,null,null,null,null,null,null,null,null,null,null,null,null,null,null,null,null,null,null,null,null,31,0]
[20,"عمرو محمود عمر","مساعد فنى",0,1,31,0,null,null,null,null,null,null,null,null,null,null,null,null,null,null,null,null,null,null,null,null,null,null,null,null,null,null,null,null,null,null,null,null,null,null,null,31,0]
[21,"محمد يوسف ","مدير مالى ",3000,1,31,0,null,null,null,null,null,null,null,null,null,null,null,null,null,null,null,null,null,null,null,null,null,null,null,null,null,null,null,null,null,null,null,null,null,null,null,31,0]
[22,"B",null,0,1,31,0,null,null,null,null,null,null,null,null,null,null,null,null,null,null,null,null,null,null,null,null,null,null,null,null,null,null,null,null,null,null,null,null,null,null,null,31,0]
[23,"C",null,0,1,31,0,null,null,null,null,null,null,null,null,null,null,null,null,null,null,null,null,null,null,null,null,null,null,null,null,null,null,null,null,null,null,null,null,null,null,null,31,0]
[24,"D",null,0,1,31,0,null,null,null,null,null,null,null,null,null,null,null,null,null,null,null,null,null,null,null,null,null,null,null,null,null,null,null,null,null,null,null,null,null,null,null,31,0]
[25,"F",null,0,1,31,0,null,null,null,null,null,null,null,null,null,null,null,null,null,null,null,null,null,null,null,null,null,null,null,null,null,null,null,null,null,null,null,null,null,null,null,31,0]

{"sheet":"حضور غياب","index":6,"n_rows":7,"n_cols":7,"rows_kept":7,"cut":false,"hidden":false,"merged":[]}
[]
[]
[]
[]
[]
[]
[2,"هشام محمد فتح الله ","محاسب",3500,1,31,0]